EXTRACTDATE,PUBLISHERURI,ORGANISATIONLABEL,EXPENSE DATE,VENDOR NAME ,COST CENTRE NAME,SUBJECTIVE DESCRIPTION,REQUESTED EXPENSE AMOUNT
04/06/2021,,LB of Brent,01/03/2021,L & M Autocare Ltd,GORDON BROWN OUTDOOR EDUCATION CENTRE,VEHICLE REPAIRS AND MAINTENANCE,36.33
04/06/2021,,LB of Brent,01/03/2021,Dvla Vehicle Tax,GORDON BROWN OUTDOOR EDUCATION CENTRE,VEHICLE LICENSING,139.58
04/06/2021,,LB of Brent,01/03/2021,Flickr Pro Monthly,DIGITAL COMMS,ICT MAINTENANCE AND SUPPORT,5.41
04/06/2021,,LB of Brent,02/03/2021,Google *gsuite_bmsstaf,BRENT MUSIC SERVICE,ICT SOFTWARE,41.40
04/06/2021,,LB of Brent,02/03/2021,Clayton Crown Online,EMERGENCY PLANNING,PROFESSIONAL SERVICES - GENERAL,580.95
04/06/2021,,LB of Brent,02/03/2021,Clayton Crown Online,EMERGENCY PLANNING,PROFESSIONAL SERVICES - GENERAL,112.50
04/06/2021,,LB of Brent,02/03/2021,Clayton Crown Online,EMERGENCY PLANNING,PROFESSIONAL SERVICES - GENERAL,"1,419.05"
04/06/2021,,LB of Brent,02/03/2021,Tesco Store 2122,SHORT BREAK CENTRE,CATERING AND VENDING SUPPLIES,167.63
04/06/2021,,LB of Brent,02/03/2021,Msft *,BRENT SICTS,ICT SOFTWARE,179.30
04/06/2021,,LB of Brent,02/03/2021,Zoom.Gbp,SOUTHWARK IT SHARED SERVICE,ICT SOFTWARE,536.60
04/06/2021,,LB of Brent,02/03/2021,Zoom.Gbp,SOUTHWARK IT SHARED SERVICE,ICT SOFTWARE,"1,111.22"
04/06/2021,,LB of Brent,03/03/2021,Amznmktplace,EQUIPMENT FOR FLEXIBLE WORKING,"PURCHASE - EQUIPMENT, FURNITURE AND MATERIALS",4.78
04/06/2021,,LB of Brent,03/03/2021,Eb *agile Savings Prog,TRANSFORMATION TEAM,CONFERENCE EXPENSES,150.00
04/06/2021,,LB of Brent,03/03/2021,Amazon.Co.Uk,BRENT FAMILY SOLUTIONS,MISCELLANEOUS EXPENSES,20.00
04/06/2021,,LB of Brent,03/03/2021,Oyster Online,BRENT FAMILY SOLUTIONS,PUBLIC TRANSPORT FOR STAFF,50.00
04/06/2021,,LB of Brent,04/03/2021,London Executive,Responsive Repairs - Contract Payment,COMPENSATION,"3,722.57"
04/06/2021,,LB of Brent,04/03/2021,Www.Insidehousing.Co.U,Leasehold Management,MEMBERSHIP AND SUBSCRIPTIONS,191.00
04/06/2021,,LB of Brent,04/03/2021,Amznmktplace,MULTI AGENCY SAFEGUARDING HUB (MASH),"PURCHASE - EQUIPMENT, FURNITURE AND MATERIALS",9.91
04/06/2021,,LB of Brent,04/03/2021,Amazon.Co.Uk,BRENT SICTS,ICT HARDWARE,38.62
04/06/2021,,LB of Brent,04/03/2021,Eb *online Training Re,STRATEGY & PARTNERSHIPS,STAFF DEVELOPMENT AND TRAINING,90.00
04/06/2021,,LB of Brent,05/03/2021,Premier Inn 44537600,HOUSING NEEDS ACCOMMODATION TEAM,HOTEL AND OTHER ACCOMMODATION COSTS,350.00
04/06/2021,,LB of Brent,05/03/2021,Dvla Vehicle Tax,BRENT MUSIC SERVICE,VEHICLE REPAIRS AND MAINTENANCE,148.25
04/06/2021,,LB of Brent,05/03/2021,Sp * Handmade Cards By,STRATEGY & PARTNERSHIPS,STATIONERY,110.00
04/06/2021,,LB of Brent,05/03/2021,Www.Adass.Org.Uk,SOCIAL SERVICES DIRECTORATE,STAFF DEVELOPMENT AND TRAINING,240.00
04/06/2021,,LB of Brent,05/03/2021,Www.Adass.Org.Uk,SOCIAL SERVICES DIRECTORATE,STAFF DEVELOPMENT AND TRAINING,240.00
04/06/2021,,LB of Brent,05/03/2021,Hotel Supplies Ltd,CIVIC CENTRE - AV,FACILITIES MANAGEMENT,59.68
04/06/2021,,LB of Brent,05/03/2021,"Trello.Com, Atlassian",PERFORMANCE INSIGHT AND IMPROVEMENT,PRIVATE CONTRACTORS PAYMENT - OTHER,246.60
04/06/2021,,LB of Brent,05/03/2021,Www.Brentgov.Uk,Neighbourhood Services - Estate Services,LEGAL FEES,37.50
04/06/2021,,LB of Brent,08/03/2021,Amznmktplace,HOUSING NEEDS ACCOMMODATION TEAM,STATIONERY,24.99
04/06/2021,,LB of Brent,08/03/2021,Amznmktplace,Central Overheads,STATIONERY,27.49
04/06/2021,,LB of Brent,08/03/2021,Amazon.Co.Uk,HOUSING CUSTOMER SERVICES TEAM,"PURCHASE - EQUIPMENT, FURNITURE AND MATERIALS",8.78
04/06/2021,,LB of Brent,08/03/2021,Amznmktplace,CIVIC CENTRE - AV,"PURCHASE - EQUIPMENT, FURNITURE AND MATERIALS",9.74
04/06/2021,,LB of Brent,08/03/2021,Amznmktplace,REVENUES,"PURCHASE - EQUIPMENT, FURNITURE AND MATERIALS",14.99
04/06/2021,,LB of Brent,08/03/2021,Amznmktplace Amazon.Co.Uk,REVENUES,"PURCHASE - EQUIPMENT, FURNITURE AND MATERIALS",14.99
04/06/2021,,LB of Brent,09/03/2021,Uk Oracle User Group,ONE ORACLE,ICT MAINTENANCE AND SUPPORT,500.00
04/06/2021,,LB of Brent,09/03/2021,Amznmktplace,ACCOUNTS PAYABLE,"PURCHASE - EQUIPMENT, FURNITURE AND MATERIALS",38.15
04/06/2021,,LB of Brent,09/03/2021,Amznmktplace,CIVIC CENTRE DEVELOPMENT,"PURCHASE - EQUIPMENT, FURNITURE AND MATERIALS",245.07
04/06/2021,,LB of Brent,09/03/2021,Tesco Store 2122,SHORT BREAK CENTRE,CATERING AND VENDING SUPPLIES,137.98
04/06/2021,,LB of Brent,09/03/2021,Www.Ico.Org.Uk,EARLY YEARS CENTRAL SERVICES,SERVICE CHARGES,40.00
04/06/2021,,LB of Brent,09/03/2021,Amznmktplace,GORDON BROWN OUTDOOR EDUCATION CENTRE,"PURCHASE - EQUIPMENT, FURNITURE AND MATERIALS",21.64
04/06/2021,,LB of Brent,10/03/2021,Amz*examdots Uk,BRENT MUSIC SERVICE,SPECIALIST EQUIPMENT FOR SERVICE PROVISION,-7.11
04/06/2021,,LB of Brent,10/03/2021,Cmp* Musicroom.Com,BRENT MUSIC SERVICE,SPECIALIST EQUIPMENT FOR SERVICE PROVISION,11.18
04/06/2021,,LB of Brent,10/03/2021,Jemca- Edgware Rd,CHIEF EXECS ADMIN TEAM,VEHICLE REPAIRS AND MAINTENANCE,162.50
04/06/2021,,LB of Brent,10/03/2021,Amznmktplace,NCIL PROJECTS,SPECIALIST EQUIPMENT FOR SERVICE PROVISION,420.11
04/06/2021,,LB of Brent,10/03/2021,Intellisoftware Ltd,SOUTHWARK IT SHARED SERVICE,ICT SOFTWARE,10.00
04/06/2021,,LB of Brent,10/03/2021,Perrys Group,BRENT MUSIC SERVICE,VEHICLE REPAIRS AND MAINTENANCE,-50.00
04/06/2021,,LB of Brent,10/03/2021,Namesco,ONE ORACLE,ICT SOFTWARE,38.97
04/06/2021,,LB of Brent,11/03/2021,Www.Voucherexpress.Co.,Responsive Repairs - Contract Payment,COMPENSATION,87.50
04/06/2021,,LB of Brent,11/03/2021,Staples.Co.Uk,REABLEMENT - EDT OPERATIONAL,"PURCHASE - EQUIPMENT, FURNITURE AND MATERIALS",11.49
04/06/2021,,LB of Brent,11/03/2021,Staples.Co.Uk,REABLEMENT - EDT OPERATIONAL,"PURCHASE - EQUIPMENT, FURNITURE AND MATERIALS",16.78
04/06/2021,,LB of Brent,11/03/2021,Amazon.Co.Uk,HOUSING CUSTOMER SERVICES TEAM,"PURCHASE - EQUIPMENT, FURNITURE AND MATERIALS",207.45
04/06/2021,,LB of Brent,11/03/2021,Facebk *gsnp62xsv2,CAMPAIGNS AND MEDIA,"ADVERTISING, PUBLICITY AND MARKETING",500.00
04/06/2021,,LB of Brent,11/03/2021,Amazon Prime,BRENT SICTS,POSTAGE AND COURIER SERVICES,6.66
04/06/2021,,LB of Brent,11/03/2021,Oyster Online,BRENT FAMILY SOLUTIONS,PUBLIC TRANSPORT FOR STAFF,50.00
04/06/2021,,LB of Brent,11/03/2021,Gls Educational,GORDON BROWN OUTDOOR EDUCATION CENTRE,"PURCHASE - EQUIPMENT, FURNITURE AND MATERIALS",35.94
04/06/2021,,LB of Brent,12/03/2021,Staples.Co.Uk,EQUIPMENT FOR FLEXIBLE WORKING,"PURCHASE - EQUIPMENT, FURNITURE AND MATERIALS",176.00
04/06/2021,,LB of Brent,13/03/2021,Namesco,ONE ORACLE,ICT SOFTWARE,3.49
04/06/2021,,LB of Brent,15/03/2021,Amznmktplace,Communications,STATIONERY,7.06
04/06/2021,,LB of Brent,15/03/2021,Amznmktplace,POLITICAL GROUP SUPPORT,"PURCHASE - EQUIPMENT, FURNITURE AND MATERIALS",20.53
04/06/2021,,LB of Brent,15/03/2021,Companies House,LEGAL SUPPORT,LEGAL FEES,15.00
04/06/2021,,LB of Brent,15/03/2021,Bls*monday.Com,BRENT SICTS,ICT SOFTWARE,66.00
04/06/2021,,LB of Brent,16/03/2021,Amazon.Co.Uk,TRANSFORMATION TEAM,"BOOKS, PUBLICATIONS AND RESOURCES",9.49
04/06/2021,,LB of Brent,16/03/2021,Amznmktplace,CHIEF EXECS ADMIN TEAM,"PURCHASE - EQUIPMENT, FURNITURE AND MATERIALS",11.66
04/06/2021,,LB of Brent,16/03/2021,Amznmktplace,TRANSFORMATION TEAM,"PURCHASE - EQUIPMENT, FURNITURE AND MATERIALS",19.99
04/06/2021,,LB of Brent,16/03/2021,Amznmktplace,CHIEF EXECS ADMIN TEAM,"PURCHASE - EQUIPMENT, FURNITURE AND MATERIALS",20.81
04/06/2021,,LB of Brent,16/03/2021,Eb *digital Tactics To,CORPORATE COMMUNICATIONS UNIT,CONFERENCE EXPENSES,95.00
04/06/2021,,LB of Brent,16/03/2021,Westminster Insight,DIGITAL STRATEGY,CONFERENCE EXPENSES,432.00
04/06/2021,,LB of Brent,16/03/2021,Www.Totaljobs.Com,CIVIC CENTRE CONFERENCE & EVENTS,"ADVERTISING, PUBLICITY AND MARKETING",220.00
04/06/2021,,LB of Brent,16/03/2021,Tesco Store 2122,SHORT BREAK CENTRE,CATERING AND VENDING SUPPLIES,165.48
04/06/2021,,LB of Brent,16/03/2021,Pantheon Systems Inc,DIGITAL COMMS,ICT MAINTENANCE AND SUPPORT,26.10
04/06/2021,,LB of Brent,16/03/2021,Zoom.Gbp,SOUTHWARK IT SHARED SERVICE,ICT SOFTWARE,112.00
04/06/2021,,LB of Brent,16/03/2021,Amznmktplace,GORDON BROWN OUTDOOR EDUCATION CENTRE,"PURCHASE - EQUIPMENT, FURNITURE AND MATERIALS",15.62
04/06/2021,,LB of Brent,17/03/2021,Angel Cars,EMERGENCY PLANNING,PROFESSIONAL SERVICES - GENERAL,50.00
04/06/2021,,LB of Brent,17/03/2021,Amazon.Co.Uk,CIVIC CENTRE - AV,"PURCHASE - EQUIPMENT, FURNITURE AND MATERIALS",3.65
04/06/2021,,LB of Brent,17/03/2021,Facebk *x86lc3ftv2,CAMPAIGNS AND MEDIA,"ADVERTISING, PUBLICITY AND MARKETING",500.00
04/06/2021,,LB of Brent,17/03/2021,Trans Bg Ltd,MAJOR PROJECTS - CENTRAL,POSTAGE AND COURIER SERVICES,130.00
04/06/2021,,LB of Brent,17/03/2021,Oyster Online,BRENT FAMILY SOLUTIONS,PUBLIC TRANSPORT FOR STAFF,5.00
04/06/2021,,LB of Brent,18/03/2021,Www.Voucherexpress.Co.,SOCIAL SERVICES DIRECTORATE,PRIVATE CONTRACTORS PAYMENT - OTHER,20.00
04/06/2021,,LB of Brent,18/03/2021,Www.Voucherexpress.Co.,SOCIAL SERVICES DIRECTORATE,PRIVATE CONTRACTORS PAYMENT - OTHER,20.00
04/06/2021,,LB of Brent,18/03/2021,Companies House,LEGAL SUPPORT,LEGAL FEES,15.00
04/06/2021,,LB of Brent,19/03/2021,Atlassian,DIGITAL COMMS,ICT MAINTENANCE AND SUPPORT,7.42
04/06/2021,,LB of Brent,19/03/2021,Posturite Ltd,INCOME CONTROL TEAM,"PURCHASE - EQUIPMENT, FURNITURE AND MATERIALS",63.28
04/06/2021,,LB of Brent,19/03/2021,C2e774900413f Ukvi,SCHOOLS HR,PROFESSIONAL SERVICES - GENERAL,"2,199.00"
04/06/2021,,LB of Brent,20/03/2021,Staples.Co.Uk,REABLEMENT - EDT OPERATIONAL,"PURCHASE - EQUIPMENT, FURNITURE AND MATERIALS",275.00
04/06/2021,,LB of Brent,20/03/2021,Hotjar,DIGITAL COMMS,ICT MAINTENANCE AND SUPPORT,25.66
04/06/2021,,LB of Brent,21/03/2021,Amazon.Co.Uk,CIVIC CENTRE - AV,"PURCHASE - EQUIPMENT, FURNITURE AND MATERIALS",7.30
04/06/2021,,LB of Brent,20/03/2021,Namesco,MOPAC Rescue and Response,LAND LINE TELEPHONE COSTS,3.49
04/06/2021,,LB of Brent,22/03/2021,L B Camden Th,Neighbourhood Services - Estate Services,LEGAL FEES,13.00
04/06/2021,,LB of Brent,22/03/2021,Zoom.Us 888-799-9666,BRENT MUSIC SERVICE,ICT SOFTWARE,562.85
04/06/2021,,LB of Brent,22/03/2021,Speedy Sameday Courier,SPECIAL PROJECTS - SCHOOLS,POSTAGE AND COURIER SERVICES,60.27
04/06/2021,,LB of Brent,22/03/2021,Companies House,LEGAL SUPPORT,LEGAL FEES,15.00
04/06/2021,,LB of Brent,23/03/2021,Amazon.Co.Uk,ICST EXTERNAL FUNDING,"PURCHASE - EQUIPMENT, FURNITURE AND MATERIALS",52.48
04/06/2021,,LB of Brent,23/03/2021,Facebk *d4bx63ptv2,CAMPAIGNS AND MEDIA,"ADVERTISING, PUBLICITY AND MARKETING",500.00
04/06/2021,,LB of Brent,23/03/2021,Tesco Store 2122,SHORT BREAK CENTRE,CATERING AND VENDING SUPPLIES,172.60
04/06/2021,,LB of Brent,23/03/2021,Paypal,LEGAL SUPPORT,STAFF DEVELOPMENT AND TRAINING,712.50
04/06/2021,,LB of Brent,23/03/2021,Paypal,LEGAL SUPPORT,STAFF DEVELOPMENT AND TRAINING,30.00
04/06/2021,,LB of Brent,23/03/2021,Eb *online Training An,MEMBER DEVELOPMENT,STAFF DEVELOPMENT AND TRAINING,121.50
04/06/2021,,LB of Brent,23/03/2021,Oyster Online,BRENT FAMILY SOLUTIONS,PUBLIC TRANSPORT FOR STAFF,10.00
04/06/2021,,LB of Brent,24/03/2021,Amazon.Co.Uk,Communications,STATIONERY,37.79
04/06/2021,,LB of Brent,24/03/2021,London Executive,Responsive Repairs - Contract Payment,COMPENSATION,-85.71
04/06/2021,,LB of Brent,24/03/2021,Southern Electric,Communal Utility Costs,ELECTRICITY,422.37
04/06/2021,,LB of Brent,24/03/2021,London Executive,Responsive Repairs - Contract Payment,COMPENSATION,"4,428.71"
04/06/2021,,LB of Brent,24/03/2021,Adobe Creative Cloud,CAMPAIGNS AND MEDIA,MEMBERSHIP AND SUBSCRIPTIONS,"1,061.64"
04/06/2021,,LB of Brent,24/03/2021,Paypal,LEGAL SUPPORT,ICT MAINTENANCE AND SUPPORT,"1,279.90"
04/06/2021,,LB of Brent,24/03/2021,Amazon.Co.Uk,EARLY YEARS CENTRAL SERVICES,SERVICE CHARGES,12.99
04/06/2021,,LB of Brent,24/03/2021,Amazon.Co.Uk,EARLY YEARS CENTRAL SERVICES,SERVICE CHARGES,12.99
04/06/2021,,LB of Brent,24/03/2021,Amazon.Co.Uk,EARLY YEARS CENTRAL SERVICES,SERVICE CHARGES,12.99
04/06/2021,,LB of Brent,25/03/2021,Amazon.Co.Uk,BRENT MUSIC SERVICE,SPECIALIST EQUIPMENT FOR SERVICE PROVISION,28.96
04/06/2021,,LB of Brent,25/03/2021,Amazon.Co.Uk,BRENT MUSIC SERVICE,SPECIALIST EQUIPMENT FOR SERVICE PROVISION,28.96
04/06/2021,,LB of Brent,25/03/2021,Amazon.Co.Uk,BRENT MUSIC SERVICE,SPECIALIST EQUIPMENT FOR SERVICE PROVISION,28.96
04/06/2021,,LB of Brent,25/03/2021,Amazon.Co.Uk,BRENT MUSIC SERVICE,SPECIALIST EQUIPMENT FOR SERVICE PROVISION,28.96
04/06/2021,,LB of Brent,25/03/2021,Amazon Prime,CIVIC CENTRE DEVELOPMENT,"PURCHASE - EQUIPMENT, FURNITURE AND MATERIALS",-16.67
04/06/2021,,LB of Brent,25/03/2021,Dreams Ltd,SHORT BREAK CENTRE,"PURCHASE - EQUIPMENT, FURNITURE AND MATERIALS",319.00
04/06/2021,,LB of Brent,25/03/2021,Abilitynet,DIGITAL COMMS,STAFF DEVELOPMENT AND TRAINING,371.67
04/06/2021,,LB of Brent,25/03/2021,Companies House,LEGAL SUPPORT,LEGAL FEES,15.00
04/06/2021,,LB of Brent,25/03/2021,Paypal,LEGAL SUPPORT,ICT MAINTENANCE AND SUPPORT,639.95
04/06/2021,,LB of Brent,25/03/2021,Amazon.Co.Uk,EARLY YEARS CENTRAL SERVICES,SERVICE CHARGES,12.99
04/06/2021,,LB of Brent,25/03/2021,Amazon.Co.Uk,EARLY YEARS CENTRAL SERVICES,SERVICE CHARGES,12.99
04/06/2021,,LB of Brent,25/03/2021,Amazon.Co.Uk,EARLY YEARS CENTRAL SERVICES,SERVICE CHARGES,12.99
04/06/2021,,LB of Brent,25/03/2021,Amazon.Co.Uk,EARLY YEARS CENTRAL SERVICES,SERVICE CHARGES,12.99
04/06/2021,,LB of Brent,26/03/2021,Amazon.Co.Uk,EQUIPMENT FOR FLEXIBLE WORKING,"PURCHASE - EQUIPMENT, FURNITURE AND MATERIALS",11.21
04/06/2021,,LB of Brent,26/03/2021,Dreams Ltd,SHORT BREAK CENTRE,"PURCHASE - EQUIPMENT, FURNITURE AND MATERIALS",-20.00
04/06/2021,,LB of Brent,26/03/2021,Paypal,LEGAL SUPPORT,ICT MAINTENANCE AND SUPPORT,639.95
04/06/2021,,LB of Brent,27/03/2021,Staples.Co.Uk,REVENUES,"PURCHASE - EQUIPMENT, FURNITURE AND MATERIALS",176.00
04/06/2021,,LB of Brent,27/03/2021,Amznmktplace,SHORT BREAK CENTRE,"PURCHASE - EQUIPMENT, FURNITURE AND MATERIALS",36.61
04/06/2021,,LB of Brent,29/03/2021,B & Q 1066,Communications,STATIONERY,85.00
04/06/2021,,LB of Brent,29/03/2021,Tesco Store 2080,GORDON BROWN OUTDOOR EDUCATION CENTRE,CATERING AND VENDING SUPPLIES,16.23
04/06/2021,,LB of Brent,29/03/2021,Lidl Gb Basingstoke,GORDON BROWN OUTDOOR EDUCATION CENTRE,CATERING AND VENDING SUPPLIES,93.41
04/06/2021,,LB of Brent,29/03/2021,Www.Banneruk.Com,EQUIPMENT FOR FLEXIBLE WORKING,"PURCHASE - EQUIPMENT, FURNITURE AND MATERIALS",9.06
04/06/2021,,LB of Brent,29/03/2021,Facebk *39kht2ttv2,CAMPAIGNS AND MEDIA,"ADVERTISING, PUBLICITY AND MARKETING",445.31
04/06/2021,,LB of Brent,30/03/2021,Www.Banneruk.Com,MOPAC Rescue and Response,"PURCHASE - EQUIPMENT, FURNITURE AND MATERIALS",24.00
04/06/2021,,LB of Brent,30/03/2021,Travelodge Gb0000,GLA ELECTION,HOTEL AND OTHER ACCOMMODATION COSTS,45.12
04/06/2021,,LB of Brent,30/03/2021,Screwfix Direct,Core Finance,"MAINTENANCE - EQUIPMENT, FURNITURE AND MATERIALS",45.83
04/06/2021,,LB of Brent,30/03/2021,Tesco Store 2122,SHORT BREAK CENTRE,CATERING AND VENDING SUPPLIES,181.86
04/06/2021,,LB of Brent,30/03/2021,Oyster Online,BRENT FAMILY SOLUTIONS,PUBLIC TRANSPORT FOR CLIENTS,-10.00
04/06/2021,,LB of Brent,31/03/2021,Tesco Store 2122,SHORT BREAK CENTRE,CATERING AND VENDING SUPPLIES,-6.43
04/06/2021,,LB of Brent,31/03/2021,B & Q 1066,Communications,STATIONERY,-85.00
04/06/2021,,LB of Brent,31/03/2021,Amz*goinghome,SHORT BREAK CENTRE,"PURCHASE - EQUIPMENT, FURNITURE AND MATERIALS",-23.99
04/06/2021,,LB of Brent,31/03/2021,B & Q 1066,SHORT BREAK CENTRE,"PURCHASE - EQUIPMENT, FURNITURE AND MATERIALS",21.66
04/06/2021,,LB of Brent,01/04/2021,Gb Total Equestrian,GORDON BROWN OUTDOOR EDUCATION CENTRE,CATERING AND VENDING SUPPLIES,65.63
04/06/2021,,LB of Brent,01/04/2021,Flickr Pro Monthly,DIGITAL COMMS,ICT MAINTENANCE AND SUPPORT,5.41
04/06/2021,,LB of Brent,02/04/2021,Google *gsuite_bmsstaf,BRENT MUSIC SERVICE,ICT SOFTWARE,41.40
04/06/2021,,LB of Brent,05/04/2021,"Trello.Com, Atlassian",PERFORMANCE INSIGHT AND IMPROVEMENT,PRIVATE CONTRACTORS PAYMENT - OTHER,246.14
04/06/2021,,LB of Brent,07/04/2021,C I H,Neighbourhood Services - Estate Services,STAFF DEVELOPMENT AND TRAINING,24.00
04/06/2021,,LB of Brent,07/04/2021,Thames Water,MAJOR PROJECTS - ALPERTON,SURVEYS,59.76
04/06/2021,,LB of Brent,07/04/2021,Tesco Store 2122,SHORT BREAK CENTRE,CATERING AND VENDING SUPPLIES,166.46
04/06/2021,,LB of Brent,07/04/2021,Tesco Stores 6186,BRENT FAMILY SOLUTIONS,MISCELLANEOUS EXPENSES,100.00
04/06/2021,,LB of Brent,08/04/2021,Tesco Store 2080,GORDON BROWN OUTDOOR EDUCATION CENTRE,CATERING AND VENDING SUPPLIES,6.33
04/06/2021,,LB of Brent,08/04/2021,Tesco Stores 6186,BRENT FAMILY SOLUTIONS,MISCELLANEOUS EXPENSES,300.00
04/06/2021,,LB of Brent,09/04/2021,Amazon.Co.Uk,HOUSING CUSTOMER SERVICES TEAM,STATIONERY,101.50
04/06/2021,,LB of Brent,09/04/2021,Speedy Sameday Courier,WINTER SUPPORT FUND,POSTAGE AND COURIER SERVICES,20.16
04/06/2021,,LB of Brent,09/04/2021,Amazon.Co.Uk,STRATEGY & PARTNERSHIPS,GENERAL OFFICE EXPENSES,50.00
04/06/2021,,LB of Brent,09/04/2021,Amznmktplace Amazon.Co.Uk,POLITICAL GROUP SUPPORT,"PURCHASE - EQUIPMENT, FURNITURE AND MATERIALS",66.63
04/06/2021,,LB of Brent,09/04/2021,Amazon.Co.Uk,STRATEGY & PARTNERSHIPS,GENERAL OFFICE EXPENSES,100.00
04/06/2021,,LB of Brent,09/04/2021,Amazon.Co.Uk,STRATEGY & PARTNERSHIPS,GENERAL OFFICE EXPENSES,350.00
04/06/2021,,LB of Brent,09/04/2021,Amznmktplace,BRENT FAMILY SOLUTIONS,"PURCHASE - EQUIPMENT, FURNITURE AND MATERIALS",302.13
04/06/2021,,LB of Brent,11/04/2021,Amazon.Co.Uk,EQUIPMENT FOR FLEXIBLE WORKING,"PURCHASE - EQUIPMENT, FURNITURE AND MATERIALS",3.98
04/06/2021,,LB of Brent,11/04/2021,Amznmktplace,BRENT FAMILY SOLUTIONS,MISCELLANEOUS EXPENSES,155.26
04/06/2021,,LB of Brent,11/04/2021,Amznmktplace,BRENT FAMILY SOLUTIONS,"PURCHASE - EQUIPMENT, FURNITURE AND MATERIALS",194.06
04/06/2021,,LB of Brent,12/04/2021,Amazon.Co.Uk,CHIEF EXECS ADMIN TEAM,STATIONERY,19.98
04/06/2021,,LB of Brent,13/04/2021,Tesco Store 2670,GORDON BROWN OUTDOOR EDUCATION CENTRE,CATERING AND VENDING SUPPLIES,2.32
04/06/2021,,LB of Brent,13/04/2021,Www.Banneruk.Com,SOCIAL SERVICES DIRECTORATE,"PURCHASE - EQUIPMENT, FURNITURE AND MATERIALS","2,400.00"
04/06/2021,,LB of Brent,13/04/2021,Companies House,LEGAL SUPPORT,LEGAL FEES,15.00
04/06/2021,,LB of Brent,14/04/2021,Dvla Vehicle Tax,BRENT MUSIC SERVICE,OTHER VEHICLE COSTS,277.50
04/06/2021,,LB of Brent,14/04/2021,Amz*dykhmily Work,CIVIC CENTRE - AV,"PURCHASE - EQUIPMENT, FURNITURE AND MATERIALS",-32.18
04/06/2021,,LB of Brent,14/04/2021,Amz*dykhmily Work,CIVIC CENTRE - AV,"PURCHASE - EQUIPMENT, FURNITURE AND MATERIALS",-32.18
04/06/2021,,LB of Brent,14/04/2021,Amz*dykhmily Work,CIVIC CENTRE - AV,"PURCHASE - EQUIPMENT, FURNITURE AND MATERIALS",-32.18
04/06/2021,,LB of Brent,14/04/2021,Amz*dykhmily Work,CIVIC CENTRE - AV,"PURCHASE - EQUIPMENT, FURNITURE AND MATERIALS",-32.18
04/06/2021,,LB of Brent,14/04/2021,Amznmktplace,CIVIC CENTRE DEVELOPMENT,"PURCHASE - EQUIPMENT, FURNITURE AND MATERIALS",272.50
04/06/2021,,LB of Brent,14/04/2021,Www.Brentgov.Uk,Neighbourhood Services - Estate Services,LEGAL FEES,11.00
04/06/2021,,LB of Brent,15/04/2021,Amznmktplace,CIVIC CENTRE - AV,"PURCHASE - EQUIPMENT, FURNITURE AND MATERIALS",27.32
04/06/2021,,LB of Brent,15/04/2021,Amznmktplace,CIVIC CENTRE - AV,"PURCHASE - EQUIPMENT, FURNITURE AND MATERIALS",29.13
04/06/2021,,LB of Brent,15/04/2021,Amznmktplace,CIVIC CENTRE - AV,"PURCHASE - EQUIPMENT, FURNITURE AND MATERIALS",58.25
04/06/2021,,LB of Brent,15/04/2021,Posturite Ltd,PERFORMANCE INSIGHT AND IMPROVEMENT,"PURCHASE - EQUIPMENT, FURNITURE AND MATERIALS",694.51
04/06/2021,,LB of Brent,15/04/2021,Www.Gov.Uk,LEGAL SUPPORT,LEGAL FEES,1.50
04/06/2021,,LB of Brent,16/04/2021,Euroffice.Co.Uk,GLA ELECTION,"PURCHASE - EQUIPMENT, FURNITURE AND MATERIALS",46.40
04/06/2021,,LB of Brent,16/04/2021,Tesco Store 2122,SHORT BREAK CENTRE,CATERING AND VENDING SUPPLIES,-2.00
04/06/2021,,LB of Brent,16/04/2021,Tesco Store 2122,SHORT BREAK CENTRE,CATERING AND VENDING SUPPLIES,172.52
04/06/2021,,LB of Brent,16/04/2021,Pantheon Systems Inc,DIGITAL COMMS,ICT MAINTENANCE AND SUPPORT,26.28
04/06/2021,,LB of Brent,17/04/2021,Amazon.Co.Uk,BRENT MUSIC SERVICE,ICT HARDWARE,58.31
04/06/2021,,LB of Brent,18/04/2021,Amazon.Co.Uk,BRENT MUSIC SERVICE,"PURCHASE - EQUIPMENT, FURNITURE AND MATERIALS",24.17
04/06/2021,,LB of Brent,19/04/2021,Atlassian,DIGITAL COMMS,ICT MAINTENANCE AND SUPPORT,9.01
04/06/2021,,LB of Brent,19/04/2021,London Executive,Disrepair,COMPENSATION,"2,895.33"
04/06/2021,,LB of Brent,19/04/2021,Mentimeter,STRATEGY & PARTNERSHIPS,MEMBERSHIP AND SUBSCRIPTIONS,89.99
04/06/2021,,LB of Brent,19/04/2021,Unawards Tickets,CORE COMMUNICATIONS,STAFF DEVELOPMENT AND TRAINING,120.00
04/06/2021,,LB of Brent,19/04/2021,Taylorbennettfoundatio,CORE COMMUNICATIONS,NON-STAFF TRAINING,250.00
04/06/2021,,LB of Brent,20/04/2021,Amznmktplace,RESIDENT ENGAGEMENT,STORAGE AND ARCHIVING,44.19
04/06/2021,,LB of Brent,20/04/2021,Tesco Store 2080,GORDON BROWN OUTDOOR EDUCATION CENTRE,CATERING AND VENDING SUPPLIES,16.42
04/06/2021,,LB of Brent,20/04/2021,Amznmktplace,SOCIAL SERVICES DIRECTORATE,"PURCHASE - EQUIPMENT, FURNITURE AND MATERIALS",15.40
04/06/2021,,LB of Brent,20/04/2021,Amznmktplace,CIVIC CENTRE - AV,"PURCHASE - EQUIPMENT, FURNITURE AND MATERIALS",83.33
04/06/2021,,LB of Brent,20/04/2021,Hotjar,DIGITAL COMMS,ICT MAINTENANCE AND SUPPORT,25.89
04/06/2021,,LB of Brent,20/04/2021,British Heart Foundati,BRENT FAMILY SOLUTIONS,SUBSISTENCE,250.00
04/06/2021,,LB of Brent,21/04/2021,Amznmktplace,RESIDENT ENGAGEMENT,STORAGE AND ARCHIVING,40.49
04/06/2021,,LB of Brent,21/04/2021,Mole Country Stores,GORDON BROWN OUTDOOR EDUCATION CENTRE,CYCLICAL/PLANNED MAINTENANCE - BUILDING,32.14
04/06/2021,,LB of Brent,21/04/2021,Tesco Store 2080,GORDON BROWN OUTDOOR EDUCATION CENTRE,CATERING AND VENDING SUPPLIES,59.92
04/06/2021,,LB of Brent,21/04/2021,Amznmktplace,GLA ELECTION,"PURCHASE - EQUIPMENT, FURNITURE AND MATERIALS",65.94
04/06/2021,,LB of Brent,21/04/2021,Tesco Store 2122,SHORT BREAK CENTRE,CATERING AND VENDING SUPPLIES,147.80
04/06/2021,,LB of Brent,22/04/2021,Zoom.Us 888-799-9666,BRENT MUSIC SERVICE,ICT SOFTWARE,562.85
04/06/2021,,LB of Brent,22/04/2021,Amznmktplace,SOCIAL SERVICES DIRECTORATE,"PURCHASE - EQUIPMENT, FURNITURE AND MATERIALS",15.40
04/06/2021,,LB of Brent,22/04/2021,Hotel Ibis,GLA ELECTION,HOTEL AND OTHER ACCOMMODATION COSTS,72.00
04/06/2021,,LB of Brent,22/04/2021,Tannas Sustainable Sup,GLA ELECTION,"PURCHASE - EQUIPMENT, FURNITURE AND MATERIALS",172.58
04/06/2021,,LB of Brent,22/04/2021,Tannas Sustainable Sup,GLA ELECTION,"PURCHASE - EQUIPMENT, FURNITURE AND MATERIALS",231.27
04/06/2021,,LB of Brent,23/04/2021,Tesco Store 2670,GORDON BROWN OUTDOOR EDUCATION CENTRE,CATERING AND VENDING SUPPLIES,2.78
04/06/2021,,LB of Brent,23/04/2021,Www.Banneruk.Com,GLA ELECTION,"PURCHASE - EQUIPMENT, FURNITURE AND MATERIALS",33.59
04/06/2021,,LB of Brent,23/04/2021,Amznmktplace Amazon.Co.Uk,GLA ELECTION,"PURCHASE - EQUIPMENT, FURNITURE AND MATERIALS",81.69
04/06/2021,,LB of Brent,23/04/2021,Www.Banneruk.Com,GLA ELECTION,"PURCHASE - EQUIPMENT, FURNITURE AND MATERIALS",177.57
04/06/2021,,LB of Brent,23/04/2021,Www.Banneruk.Com,GLA ELECTION,"PURCHASE - EQUIPMENT, FURNITURE AND MATERIALS",192.24
04/06/2021,,LB of Brent,23/04/2021,Amznmktplace,SHORT BREAK CENTRE,SPECIALIST EQUIPMENT FOR SERVICE PROVISION,55.69
04/06/2021,,LB of Brent,23/04/2021,Jd Sports Internet,BRENT FAMILY SOLUTIONS,"CLOTHES, UNIFORM AND LAUNDRY",55.00
04/06/2021,,LB of Brent,23/04/2021,Asda George Com Leeds,BRENT FAMILY SOLUTIONS,"CLOTHES, UNIFORM AND LAUNDRY",107.00
04/06/2021,,LB of Brent,23/04/2021,Www.Awards4u.Co.Uk,MAYOR,"PURCHASE - EQUIPMENT, FURNITURE AND MATERIALS",312.50
04/06/2021,,LB of Brent,26/04/2021,Tex Hook,GORDON BROWN OUTDOOR EDUCATION CENTRE,CATERING AND VENDING SUPPLIES,20.20
04/06/2021,,LB of Brent,26/04/2021,Screwfix Dir Ltd,GORDON BROWN OUTDOOR EDUCATION CENTRE,CYCLICAL/PLANNED MAINTENANCE - BUILDING,58.28
04/06/2021,,LB of Brent,26/04/2021,Amz*deflecto Europe,SOCIAL SERVICES DIRECTORATE,"PURCHASE - EQUIPMENT, FURNITURE AND MATERIALS",-6.24
04/06/2021,,LB of Brent,26/04/2021,Amz*deflecto Europe,SOCIAL SERVICES DIRECTORATE,"PURCHASE - EQUIPMENT, FURNITURE AND MATERIALS",-9.16
04/06/2021,,LB of Brent,26/04/2021,Www.Banneruk.Com,SOCIAL SERVICES DIRECTORATE,"PURCHASE - EQUIPMENT, FURNITURE AND MATERIALS",450.00
04/06/2021,,LB of Brent,26/04/2021,Amazon.Co.Uk,GLA ELECTION,STATIONERY,8.58
04/06/2021,,LB of Brent,26/04/2021,Amznmktplace,FACILITIES MANAGEMENT � CIVIC CENTRE,"PURCHASE - EQUIPMENT, FURNITURE AND MATERIALS",21.89
04/06/2021,,LB of Brent,26/04/2021,Paypal,GLA ELECTION,"PURCHASE - EQUIPMENT, FURNITURE AND MATERIALS",37.99
04/06/2021,,LB of Brent,26/04/2021,Asda George Com Leeds,BRENT FAMILY SOLUTIONS,"CLOTHES, UNIFORM AND LAUNDRY",35.00
04/06/2021,,LB of Brent,27/04/2021,Tesco Subscription,SHORT BREAK CENTRE,CATERING AND VENDING SUPPLIES,47.94
04/06/2021,,LB of Brent,27/04/2021,Www.Gov.Uk,LEGAL SUPPORT,LEGAL FEES,1.50
04/06/2021,,LB of Brent,27/04/2021,Tesco Stores 6186,BRENT FAMILY SOLUTIONS,MISCELLANEOUS EXPENSES,10.00
04/06/2021,,LB of Brent,28/04/2021,Tesco Store 2122,SHORT BREAK CENTRE,CATERING AND VENDING SUPPLIES,-1.50
04/06/2021,,LB of Brent,28/04/2021,Tesco Store 2122,SHORT BREAK CENTRE,CATERING AND VENDING SUPPLIES,176.30
04/06/2021,,LB of Brent,28/04/2021,Amznmktplace,BRENT FAMILY SOLUTIONS,"PURCHASE - EQUIPMENT, FURNITURE AND MATERIALS",43.99
04/06/2021,,LB of Brent,28/04/2021,Www.Gov.Uk,LEGAL SUPPORT,LEGAL FEES,1.50
04/06/2021,,LB of Brent,28/04/2021,Oyster Online,BRENT FAMILY SOLUTIONS,TRANSPORT COSTS - STAFF,50.00
04/06/2021,,LB of Brent,29/04/2021,Affinity Water Ltd,HOUSING CENTRAL SERVICE-CLIENT,WATER AND SEWERAGE,"1,622.70"
04/06/2021,,LB of Brent,29/04/2021,Amznmktplace,GLA ELECTION,"PURCHASE - EQUIPMENT, FURNITURE AND MATERIALS",31.98
04/06/2021,,LB of Brent,29/04/2021,Www.Shaws.Co.Uk,GLA ELECTION,"PURCHASE - EQUIPMENT, FURNITURE AND MATERIALS",65.08
04/06/2021,,LB of Brent,29/04/2021,Amznmktplace,GLA ELECTION,"PURCHASE - EQUIPMENT, FURNITURE AND MATERIALS",159.80
04/06/2021,,LB of Brent,29/04/2021,Amznmktplace,GLA ELECTION,"PURCHASE - EQUIPMENT, FURNITURE AND MATERIALS",854.68
04/06/2021,,LB of Brent,30/04/2021,Screwfix Dir Ltd,GORDON BROWN OUTDOOR EDUCATION CENTRE,CYCLICAL/PLANNED MAINTENANCE - BUILDING,19.94
04/06/2021,,LB of Brent,30/04/2021,Weeblyus,Community Hubs,ICT SOFTWARE,13.00
04/06/2021,,LB of Brent,30/04/2021,Weebly,Community Hubs,ICT SOFTWARE,13.00
04/06/2021,,LB of Brent,30/04/2021,Amznmktplace,GLA ELECTION,"PURCHASE - EQUIPMENT, FURNITURE AND MATERIALS",52.40
04/06/2021,,LB of Brent,01/05/2021,Flickr Pro Monthly,DIGITAL COMMS,ICT MAINTENANCE AND SUPPORT,5.41
04/06/2021,,LB of Brent,02/05/2021,Google Gsuite_bmsstaff.C,BRENT MUSIC SERVICE,ICT SOFTWARE,41.40
04/06/2021,,LB of Brent,04/05/2021,London Executive,Disrepair,COMPENSATION,"2,857.14"
04/06/2021,,LB of Brent,04/05/2021,L & M Autocare Ltd,GORDON BROWN OUTDOOR EDUCATION CENTRE,VEHICLE REPAIRS AND MAINTENANCE,33.33
04/06/2021,,LB of Brent,04/05/2021,Hotel Ibis,GLA ELECTION,HOTEL AND OTHER ACCOMMODATION COSTS,36.00
04/06/2021,,LB of Brent,04/05/2021,Hotel Ibis,GLA ELECTION,HOTEL AND OTHER ACCOMMODATION COSTS,38.00
04/06/2021,,LB of Brent,04/05/2021,Amznmktplace,GLA ELECTION,"PURCHASE - EQUIPMENT, FURNITURE AND MATERIALS",110.85
04/06/2021,,LB of Brent,04/05/2021,Www.Shaws.Co.Uk,GLA ELECTION,"PURCHASE - EQUIPMENT, FURNITURE AND MATERIALS",547.20
04/06/2021,,LB of Brent,05/05/2021,Speedy Sameday Courier,GLA ELECTION,POSTAGE AND COURIER SERVICES,15.30
04/06/2021,,LB of Brent,05/05/2021,Speedy Sameday Courier,GLA ELECTION,POSTAGE AND COURIER SERVICES,31.50
04/06/2021,,LB of Brent,06/05/2021,Amazon.Co.Uk,FACILITIES MANAGEMENT � CIVIC CENTRE,"PURCHASE - EQUIPMENT, FURNITURE AND MATERIALS",58.03
04/06/2021,,LB of Brent,07/05/2021,Screwfix Dir Ltd,GORDON BROWN OUTDOOR EDUCATION CENTRE,CYCLICAL/PLANNED MAINTENANCE - BUILDING,43.19
04/06/2021,,LB of Brent,07/05/2021,Dvla Vehicle Tax,GORDON BROWN OUTDOOR EDUCATION CENTRE,VEHICLE LICENSING,139.58
04/06/2021,,LB of Brent,10/05/2021,Tex Hook,GORDON BROWN OUTDOOR EDUCATION CENTRE,TRANSPORT FUEL,83.35
04/06/2021,,LB of Brent,10/05/2021,Schoolwearspecials,BRENT FAMILY SOLUTIONS,"CLOTHES, UNIFORM AND LAUNDRY",135.55
04/06/2021,,LB of Brent,11/05/2021,London Executive,Disrepair,COMPENSATION,"2,726.71"
04/06/2021,,LB of Brent,11/05/2021,Eb *storytelling Essen,CORE COMMUNICATIONS,PROFESSIONAL SERVICES - GENERAL,65.00
04/06/2021,,LB of Brent,11/05/2021,Www.Banneruk.Com,SOCIAL SERVICES DIRECTORATE,"PURCHASE - EQUIPMENT, FURNITURE AND MATERIALS","1,350.00"
04/06/2021,,LB of Brent,11/05/2021,Asda Stores Ltd,BRENT FAMILY SOLUTIONS,MISCELLANEOUS EXPENSES,164.00
04/06/2021,,LB of Brent,11/05/2021,Brent Cross Shopping,BRENT FAMILY SOLUTIONS,MISCELLANEOUS EXPENSES,300.00
04/06/2021,,LB of Brent,12/05/2021,Wembley 2,COMMUNITY CHAMPIONS FUNDING,REMOVAL SERVICES,50.00
04/06/2021,,LB of Brent,12/05/2021,Tesco Store 2080,GORDON BROWN OUTDOOR EDUCATION CENTRE,CATERING AND VENDING SUPPLIES,150.63
04/06/2021,,LB of Brent,12/05/2021,Amazon.Co.Uk,GLA ELECTION,"PURCHASE - EQUIPMENT, FURNITURE AND MATERIALS",96.00
04/06/2021,,LB of Brent,12/05/2021,Companies House,LEGAL SUPPORT,LEGAL FEES,15.00
04/06/2021,,LB of Brent,12/05/2021,Eb *online Training Ad,ADVICE & GUIDANCE,STAFF DEVELOPMENT AND TRAINING,75.00
04/06/2021,,LB of Brent,12/05/2021,Costco Wholesale #128,BRENT FAMILY SOLUTIONS,MISCELLANEOUS EXPENSES,8.96
04/06/2021,,LB of Brent,12/05/2021,Oyster Online,BRENT FAMILY SOLUTIONS,PUBLIC TRANSPORT FOR CLIENTS,10.00
04/06/2021,,LB of Brent,13/05/2021,Miscellaneous Fee - Cash Handling Fee @ 2.95%,COMMUNITY CHAMPIONS FUNDING,REMOVAL SERVICES,1.48
04/06/2021,,LB of Brent,13/05/2021,Wembley 2,COMMUNITY CHAMPIONS FUNDING,REMOVAL SERVICES,50.00
04/06/2021,,LB of Brent,13/05/2021,Www.Voucherexpress.Co.,Disrepair,COMPENSATION,105.00
04/06/2021,,LB of Brent,13/05/2021,Companies House,LEGAL SUPPORT,LEGAL FEES,15.00
04/06/2021,,LB of Brent,14/05/2021,Miscellaneous Fee - Cash Handling Fee @ 2.95%,COMMUNITY CHAMPIONS FUNDING,REMOVAL SERVICES,1.48
04/06/2021,,LB of Brent,14/05/2021,Tesco Store 2670,GORDON BROWN OUTDOOR EDUCATION CENTRE,CATERING AND VENDING SUPPLIES,40.95
04/06/2021,,LB of Brent,14/05/2021,Eb *online Training Po,MEMBER DEVELOPMENT,PROFESSIONAL SERVICES - GENERAL,40.50
04/06/2021,,LB of Brent,14/05/2021,Amznmktplace,CHIEF EXECS ADMIN TEAM,"PURCHASE - EQUIPMENT, FURNITURE AND MATERIALS",8.32
04/06/2021,,LB of Brent,14/05/2021,Amznmktplace,BRENT FAMILY SOLUTIONS,MISCELLANEOUS EXPENSES,36.57
04/06/2021,,LB of Brent,16/05/2021,Pantheon Systems Inc,DIGITAL COMMS,ICT MAINTENANCE AND SUPPORT,25.68
04/06/2021,,LB of Brent,17/05/2021,Screwfix Dir Ltd,GORDON BROWN OUTDOOR EDUCATION CENTRE,CYCLICAL/PLANNED MAINTENANCE - BUILDING,77.50
04/06/2021,,LB of Brent,17/05/2021,Amznmktplace,BRENT MUSIC SERVICE,SPECIALIST EQUIPMENT FOR SERVICE PROVISION,3.32
04/06/2021,,LB of Brent,17/05/2021,Speedy Sameday Courier,ELECTORAL REGISTRATION,POSTAGE AND COURIER SERVICES,25.49
04/06/2021,,LB of Brent,17/05/2021,Amznmktplace Amazon.Co.Uk,TRANSFORMATION TEAM,"PURCHASE - EQUIPMENT, FURNITURE AND MATERIALS",30.79
04/06/2021,,LB of Brent,17/05/2021,Amazon.Co.Uk,CIVIC CENTRE - AV,"PURCHASE - EQUIPMENT, FURNITURE AND MATERIALS",66.84
04/06/2021,,LB of Brent,17/05/2021,Gift Card,DIGITAL COMMS,MISCELLANEOUS EXPENSES,78.99
04/06/2021,,LB of Brent,17/05/2021,Gift Card,DIGITAL COMMS,MISCELLANEOUS EXPENSES,175.00
04/06/2021,,LB of Brent,17/05/2021,Sp * Dyslexia Box,EARLY YEARS CENTRAL SERVICES,SPECIALIST EQUIPMENT FOR SERVICE PROVISION,"2,559.60"
04/06/2021,,LB of Brent,17/05/2021,Amazon.Co.Uk,BRENT MUSIC SERVICE,SPECIALIST EQUIPMENT FOR SERVICE PROVISION,65.44
04/06/2021,,LB of Brent,18/05/2021,Tesco Store 2080,GORDON BROWN OUTDOOR EDUCATION CENTRE,CATERING AND VENDING SUPPLIES,47.38
04/06/2021,,LB of Brent,19/05/2021,Amznmktplace,BRENT MUSIC SERVICE,ICT HARDWARE,85.34
04/06/2021,,LB of Brent,19/05/2021,Posturite Ltd,NCIL PROJECTS,"PURCHASE - EQUIPMENT, FURNITURE AND MATERIALS",101.78
04/06/2021,,LB of Brent,19/05/2021,Amznmktplace,FACILITIES MANAGEMENT � CIVIC CENTRE,"PURCHASE - EQUIPMENT, FURNITURE AND MATERIALS",172.73
04/06/2021,,LB of Brent,19/05/2021,Atlassian,DIGITAL COMMS,ICT MAINTENANCE AND SUPPORT,8.77
04/06/2021,,LB of Brent,19/05/2021,Companies House,LEGAL SUPPORT,LEGAL FEES,15.00
04/06/2021,,LB of Brent,19/05/2021,Companies House,LEGAL SUPPORT,LEGAL FEES,15.00
04/06/2021,,LB of Brent,20/05/2021,Amznmktplace,CIVIC CENTRE CONFERENCE & EVENTS,"PURCHASE - EQUIPMENT, FURNITURE AND MATERIALS",28.33
04/06/2021,,LB of Brent,20/05/2021,Hotjar,DIGITAL COMMS,ICT MAINTENANCE AND SUPPORT,34.71
04/06/2021,,LB of Brent,21/05/2021,Amazon.Co.Uk Amazon.Co.Uk,Communications,STATIONERY,-13.90
04/06/2021,,LB of Brent,21/05/2021,Amazon.Co.Uk Amazon.Co.Uk,Communications,STATIONERY,-87.60
04/06/2021,,LB of Brent,21/05/2021,Amznmktplace,CHIEF EXECS ADMIN TEAM,"PURCHASE - EQUIPMENT, FURNITURE AND MATERIALS",21.22
04/06/2021,,LB of Brent,25/05/2021,London Executive,Disrepair,COMPENSATION,"5,997.48"
